[Event "SWE-ch Juniors 2018"]
[Site "Ronneby"]
[Date "2018.07.04"]
[Round "5"]
[White "Emmoth, Alfons"]
[Black "Kucuksari, Kaan"]
[Result "1/2-1/2"]
[ECO "E18"]
[WhiteElo "2176"]
[BlackElo "2296"]
[Annotator "NA"]
[PlyCount "115"]
[EventDate "2018.06.30"]
[EventType "tourn"]
[EventCountry "SWE"]
[SourceTitle "playchess.com"]
[Source "ChessBase"]
[SourceQuality "1"]
[TimeControl "40/5400+30:1800+30"]

1. d4 {[%emt 0:00:00]} Nf6 {[%emt 0:00:00]} 2. c4 {[%emt 0:00:00]} e6 {[%emt 0:00:00]} 3. Nf3 {[%emt 0:00:00]} b6 {[%emt 0:00:00]} 4. g3 {[%emt 0:00:00]} Bb7 {[%emt 0:00:00]} 5. Bg2 {[%emt 0:00:13]} Be7 {[%emt 0:00:00]} 6. O-O {[%emt 0:00:20]} O-O {[%emt 0:00:00]} 7. Nc3 {[%emt 0:00:27]} Ne4 {[%emt 0:00:00]} 8. Nxe4 {[%emt 0:00:17]} Bxe4 {[%emt 0:00:00]} 9. Ne1 {[%emt 0:00:14]} Bxg2 {[%emt 0:00:19]} 10. Nxg2 {[%emt 0:00:05]} d5 {[%emt 0:00:01]} 11. Qa4 {[%emt 0:00:29]} Qd7 {[%emt 0:01:44]} 12. Qxd7 {[%emt 0:00:52]} Nxd7 {[%emt 0:00:02]} 13. cxd5 {[%emt 0:00:10]} exd5 {[%emt 0:00:04]} 14. Nf4 {[%emt 0:00:25]} c6 {[%emt 0:01:22]} 15. Be3 {[%emt 0:02:25]} Rac8 {[%emt 0:01:27]} 16. Rac1 {[%emt 0:02:13]} Rfe8 {[%emt 0:00:26]} 17. Rc2 {[%emt 0:04:05]} Bd6 {[%emt 0:00:53]} 18. Rfc1 {[%emt 0:11:42]} Bxf4 {[%emt 0:01:45]} 19. Bxf4 {[%emt 0:01:37]} Re6 {[%emt 0:02:00]} 20. b4 {[%emt 0:04:13]} b5 {[%emt 0:02:10]} 21. a4 {[%emt 0:06:43]} a6 {[%emt 0:07:44]} 22. axb5 axb5 {[%emt 0:00:05]} 23. Ra1 {[%emt 0:07:32]} Nb6 {[%emt 0:03:43]} 24. Ra7 {[%emt 0:02:37]} Rce8 {[%emt 0:05:06]} 25. Rb7 {[%emt 0:07:32]} Nc4 {[%emt 0:03:04]} 26. Ra2 {[%emt 0:02:16]} h6 {[%emt 0:03:10]} 27. Raa7 {[%emt 0:08:18]} Rf6 {[%emt 0:04:55]} 28. Re7 {[%emt 0:08:15]} Rxe7 {[%emt 0:06:38]} 29. Rxe7 {[%emt 0:00:33]} Re6 {[%emt 0:04:16]} 30. Rc7 {[%emt 0:09:27]} g5 {[%emt 0:02:03]} 31. Rc8+ {[%emt 0:02:58]} Kh7 {[%emt 0:03:58]} 32. Bb8 {[%emt 0:01:16]} Nb6 {[%emt 0:07:20]} 33. Rc7 {[%emt 0:01:50]} Kg7 {[%emt 0:01:29]} 34. e3 {[%emt 0:02:03]} g4 {[%emt 0:03:23]} 35. Ba7 {[%emt 0:02:31]} Nc4 {[%emt 0:00:56]} 36. Rc8 {[%emt 0:02:29]} Nb2 {[%emt 0:04:48]} 37. Bc5 {[%emt 0:02:10]} Nd1 {[%emt 0:05:54]} 38. Ra8 {[%emt 0:02:16]} Rf6 {[%emt 0:01:30]} 39. Bf8+ {[%emt 0:01:07]} Kh7 {[%emt 0:02:44]} 40. Ra2 {[%emt 0:01:33]} Nc3 {[%emt 0:00:52]} 41. Ra3 {[%emt 0:32:20]} Ne4 {[%emt 0:32:13]} 42. Ra2 {[%emt 0:00:42]} Rf5 {[%emt 0:07:36]} 43. Kg2 {[%emt 0:03:18]} Kg6 {[%emt 0:05:22]} 44. Rc2 {[%emt 0:00:00]} f6 {[%emt 0:00:00]} 45. Ra2 {[%emt 0:00:00]} Ng5 {[%emt 0:00:00]} 46. Rc2 {[%emt 0:00:00]} Nh3 {[%emt 0:00:00]} 47. Bd6 {[%emt 0:00:00]} Rf3 {[%emt 0:00:00]} 48. Bf4 {[%emt 0:00:00]} h5 {[%emt 0:00:00]} 49. Ra2 {[%emt 0:00:00]} Kf5 {[%emt 0:00:00]} 50. Rc2 {[%emt 0:00:00]} Ke4 {[%emt 0:00:00]} 51. Rd2 {[%emt 0:00:00]} f5 {[%emt 0:00:00]} 52. Bh6 {[%emt 0:00:00]} Nxf2 {[%emt 0:00:00]} 53. Rxf2 {[%emt 0:00:00]} Rxf2+ {[%emt 0:00:00]} 54. Kxf2 {[%emt 0:00:00]} Kd3 {[%emt 0:00:00]} 55. Bf4 {[%emt 0:00:00]} Kc3 {[%emt 0:00:00]} 56. Bd6 {[%emt 0:00:00]} Kd2 {[%emt 0:00:00]} 57. Bf4 {[%emt 0:00:00]} Kc3 {[%emt 0:00:00]} 58. Bd6 {[%emt 0:00:00]} 1/2-1/2

[Event "SWE-ch Juniors 2018"]
[Site "Ronneby"]
[Date "2018.07.04"]
[Round "5"]
[White "Forsberg, Andre"]
[Black "Berglind, Axel"]
[Result "0-1"]
[ECO "B54"]
[WhiteElo "2025"]
[BlackElo "2096"]
[Annotator "NA"]
[PlyCount "106"]
[EventDate "2018.06.30"]
[EventType "tourn"]
[EventCountry "SWE"]
[SourceTitle "playchess.com"]
[Source "ChessBase"]
[SourceQuality "1"]
[TimeControl "40/5400+30:1800+30"]

1. e4 {[%emt 0:04:54]} c5 {[%emt 0:00:00]} 2. Nf3 {[%emt 0:00:09]} d6 {[%emt 0:00:00]} 3. d4 {[%emt 0:00:05]} cxd4 {[%emt 0:00:00]} 4. Nxd4 {[%emt 0:00:02]} Nf6 {[%emt 0:00:00]} 5. f3 {[%emt 0:00:13]} Nc6 {[%emt 0:10:52]} 6. c4 {[%emt 0:02:15]} g6 {[%emt 0:00:08]} 7. Nc3 {[%emt 0:01:23]} Bg7 {[%emt 0:00:06]} 8. Be3 {[%emt 0:00:07]} O-O {[%emt 0:00:07]} 9. Qd2 {[%emt 0:00:12]} Bd7 {[%emt 0:00:48]} 10. Be2 {[%emt 0:00:23]} Nxd4 {[%emt 0:02:01]} 11. Bxd4 {[%emt 0:00:21]} Bc6 {[%emt 0:00:05]} 12. O-O {[%emt 0:00:32]} Nd7 {[%emt 0:01:42]} 13. Bxg7 {[%emt 0:01:08]} Kxg7 {[%emt 0:00:07]} 14. Nd5 {[%emt 0:03:19]} Bxd5 {[%emt 0:00:13]} 15. exd5 {[%emt 0:00:31]} Qb6+ {[%emt 0:01:13]} 16. Kh1 {[%emt 0:00:34]} Rac8 {[%emt 0:00:11]} 17. Rfe1 {[%emt 0:03:55]} Qf2 {[%emt 0:08:01]} 18. Qc3+ {[%emt 0:01:08]} Nf6 {[%emt 0:01:06]} 19. Bd3 {[%emt 0:05:55]} Rc7 {[%emt 0:03:38]} 20. Re2 {[%emt 0:01:20]} Qh4 {[%emt 0:00:53]} 21. Rae1 {[%emt 0:01:30]} Kg8 {[%emt 0:00:05]} 22. g3 {[%emt 0:12:50]} Qh5 {[%emt 0:03:45]} 23. Kg2 {[%emt 0:07:01]} Nxd5 {[%emt 0:03:24]} 24. Qd4 {[%emt 0:00:26]} Nb4 {[%emt 0:00:40]} 25. Be4 {[%emt 0:20:23]} Qc5 {[%emt 0:25:52]} 26. Qxc5 {[%emt 0:00:13]} dxc5 {[%emt 0:00:04]} 27. a3 {[%emt 0:00:28]} Na6 {[%emt 0:00:05]} 28. Rd2 {[%emt 0:04:01]} Nb8 {[%emt 0:00:19]} 29. Red1 {[%emt 0:10:02]} b6 {[%emt 0:00:03]} 30. Rd8 {[%emt 0:04:32]} Rc8 {[%emt 0:00:08]} 31. Rxc8 {[%emt 0:00:08]} Rxc8 {[%emt 0:00:06]} 32. Bb7 {[%emt 0:00:07]} Re8 {[%emt 0:00:32]} 33. b4 {[%emt 0:00:24]} e6 {[%emt 0:00:45]} 34. f4 {[%emt 0:08:22]} Kf8 {[%emt 0:00:11]} 35. g4 {[%emt 0:03:40]} Ke7 {[%emt 0:00:54]} 36. bxc5 {[%emt 0:02:25]} bxc5 {[%emt 0:00:07]} 37. Rb1 {[%emt 0:00:22]} Nd7 {[%emt 0:00:03]} 38. Bc6 {[%emt 0:01:15]} Rb8 {[%emt 0:00:04]} 39. Re1 {[%emt 0:02:19]} Rb2+ {[%emt 0:00:51]} 40. Kg1 {[%emt 0:00:27]} Rc2 {[%emt 0:00:44]} 41. Bb5 {[%emt 0:03:50]} Nb8 {[%emt 0:00:18]} 42. Rb1 {[%emt 0:01:22]} a6 {[%emt 0:00:17]} 43. Ba4 {[%emt 0:00:47]} Rxc4 {[%emt 0:00:07]} 44. Rb7+ {[%emt 0:00:11]} Kd6 {[%emt 0:00:45]} 45. Bb3 {[%emt 0:00:24]} Rc1+ {[%emt 0:01:17]} 46. Kg2 {[%emt 0:00:18]} Nc6 {[%emt 0:00:45]} 47. Ba4 {[%emt 0:00:28]} Rc4 {[%emt 0:00:31]} 48. Bxc6 {[%emt 0:05:08]} Kxc6 {[%emt 0:00:05]} 49. Rxf7 {[%emt 0:00:07]} g5 {[%emt 0:00:22]} 50. Rxh7 {[%emt 0:00:56]} Rxf4 {[%emt 0:00:16]} 51. Rh6 {[%emt 0:01:00]} Rxg4+ {[%emt 0:00:11]} 52. Kf3 {[%emt 0:00:07]} Rf4+ {[%emt 0:00:03]} 53. Ke3 {[%emt 0:00:22]} Kd5 {[%emt 0:00:16] Ke4+} 0-1

[Event "SWE-ch Juniors 2018"]
[Site "Ronneby"]
[Date "2018.07.05"]
[Round "6"]
[White "Pantzar, Milton"]
[Black "Kucuksari, Kaan"]
[Result "0-1"]
[ECO "A85"]
[WhiteElo "2333"]
[BlackElo "2296"]
[Annotator "NA"]
[PlyCount "80"]
[EventDate "2018.06.30"]
[EventType "tourn"]
[EventCountry "SWE"]
[SourceTitle "playchess.com"]
[Source "ChessBase"]
[SourceQuality "1"]
[TimeControl "40/5400+30:1800+30"]

1. c4 {[%emt 0:00:00]} f5 {[%emt 0:00:00]} 2. d4 {[%emt 0:02:54]} Nf6 {[%emt 0:00:00]} 3. Nc3 {[%emt 0:00:39]} g6 {[%emt 0:00:00]} 4. Nf3 {[%emt 0:01:29]} Bg7 {[%emt 0:00:00] LiveBook: 406 Games} 5. g3 {[%emt 0:00:05]} O-O {[%emt 0:00:00]} 6. Bg2 {[%emt 0:00:04]} d6 {[%emt 0:00:01]} 7. O-O {[%emt 0:00:15]} Qe8 {[%emt 0:00:03]} 8. b4 {[%emt 0:13:52]} e5 {[%emt 0:04:06] A87: Dutch Defence: Leningrad System: 5 Nf3} 9. dxe5 {[%emt 0:01:57]} dxe5 {[%emt 0:00:13]} 10. Qb3 {[%emt 0:01:10]} (10. e4 $14) (10. Ba3 e4 11. Nd4 Rf7 12. Qb3 Nc6 13. Nxc6 Qxc6 14. b5 Qe8 15. f3 Be6 16. Rad1 {1-0 (31) Mamedyarov,S (2757)-Svidler,P (2758) Khanty-Mansiysk 2014 CBM 160 [Meulders,R]}) 10... e4 {[%emt 0:03:51]} 11. Nd4 {[%emt 0:04:16]} c6 $146 {[%emt 0:06:27]} ({Predecessor:} 11... Nc6 12. Nxc6 bxc6 13. Be3 Qf7 14. Rac1 Ng4 15. Bc5 Re8 16. Nd1 {1-0 (41) Kalavannan,K (2094)-Stanisz,P (2128) London 2016}) 12. Rd1 {[%emt 0:03:59]} Be6 {[%emt 0:07:22]} 13. Nxe6 {[%emt 0:20:49]} Qxe6 {[%emt 0:00:04]} 14. e3 {[%emt 0:00:45]} Nbd7 {[%emt 0:06:28]} 15. Bb2 {[%emt 0:17:29]} Ne5 {[%emt 0:06:58]} 16. Bf1 $15 {[%emt 0:06:15]} Rfd8 {[%emt 0:08:11]} 17. c5 {[%emt 0:02:39]} Qxb3 {[%emt 0:07:25]} 18. axb3 {[%emt 0:00:02]} a6 {[%emt 0:06:13]} 19. Bc4+ {[%emt 0:04:56]} Nxc4 {[%emt 0:07:51]} 20. bxc4 {[%emt 0:00:02]} Ng4 {[%emt 0:00:56]} 21. Na4 {[%emt 0:00:51]} Bxb2 {[%emt 0:07:47]} 22. Nxb2 {[%emt 0:00:01]} Ne5 {[%emt 0:00:01]} 23. Rd6 {[%emt 0:06:22]} Kf7 {[%emt 0:01:08]} 24. Rad1 {[%emt 0:00:31]} Ke7 {[%emt 0:03:11]} 25. Kg2 {[%emt 0:06:52]} b5 {[%emt 0:07:11]} 26. R1d4 {[%emt 0:02:46]} Rxd6 {[%emt 0:06:57]} 27. cxd6+ {[%emt 0:00:42]} Ke6 {[%emt 0:02:24]} 28. h3 {[%emt 0:01:10]} Nxc4 {[%emt 0:05:05]} 29. Nxc4 {[%emt 0:00:05]} bxc4 {[%emt 0:00:02]} 30. Rxc4 {[%emt 0:00:48]} Kxd6 {[%emt 0:00:05]} 31. Rd4+ {[%emt 0:00:27]} Kc7 {[%emt 0:02:25]} 32. f3 {[%emt 0:00:27]} Rd8 {[%emt 0:00:40]} 33. Rc4 {[%emt 0:01:13]} Rd2+ {[%emt 0:00:01]} 34. Kf1 {[%emt 0:00:06]} exf3 {[%emt 0:00:01]} 35. Rh4 {[%emt 0:00:36]} h5 {[%emt 0:02:13]} 36. g4 {[%emt 0:00:14]} hxg4 {[%emt 0:00:40]} 37. hxg4 {[%emt 0:00:02]} g5 {[%emt 0:00:07]} 38. Rh7+ {[%emt 0:01:00]} Kd6 {[%emt 0:01:06]} 39. gxf5 {[%emt 0:00:41]} Ke5 {[%emt 0:00:10]} 40. Rf7 {[%emt 0:00:54]} g4 {[%emt 0:00:32]} 0-1

[Event "SWE-ch Juniors 2018"]
[Site "Ronneby"]
[Date "2018.07.05"]
[Round "6"]
[White "Crevatin, Leo"]
[Black "Storme, Isak"]
[Result "1/2-1/2"]
[ECO "E06"]
[WhiteElo "2224"]
[BlackElo "2277"]
[Annotator "NA"]
[PlyCount "40"]
[EventDate "2018.06.30"]
[EventType "tourn"]
[EventCountry "SWE"]
[SourceTitle "playchess.com"]
[Source "ChessBase"]
[SourceQuality "1"]
[TimeControl "40/5400+30:1800+30"]

{[%evp 8,35,16,16,19,32767,0,-11,-13,0,0,2,0,32767,32767,32767,-22,-56,-24,-56,-11,-40,-34,-21,32767,-32,3,6,8,0]} 1. d4 {[%emt 0:01:21]} Nf6 {[%emt 0:00:00]} 2. c4 {[%emt 0:02:31]} e6 {[%emt 0:00:24]} 3. Nf3 {[%emt 0:01:36]} d5 {[%emt 0:00:08]} 4. g3 {[%emt 0:00:28]} Be7 {[%emt 0:00:54]} 5. Bg2 {[%emt 0:00:43]} O-O {[%emt 0:00:07]} 6. Nbd2 {[%emt 0:02:06]} c5 {[%emt 0:01:12]} 7. cxd5 {[%emt 0:01:43]} exd5 {[%emt 0:00:06]} 8. O-O {[%emt 0:00:29]} Nc6 {[%emt 0:01:20]} 9. dxc5 {[%emt 0:00:51] LiveBook: 5 Games} Bxc5 {[%emt 0:00:07]} 10. Nb3 {[%emt 0:00:03]} Bb6 {[%emt 0:00:07]} 11. Qd3 {[%emt 0:00:34] D30: Queen's Gambit Declined: Systems without Nc3} (11. Nbd4 Re8 12. b3 Bg4 13. Bb2 Ne4 14. Rc1 Rc8 15. Rc2 Qd6 16. a3 h5 17. b4 h4 18. Nxc6 Rxc6 19. Nd4 Rxc2 20. Qxc2 hxg3 21. hxg3 Nxg3 22. fxg3 Rxe2 {½-½ (29) Rakhmanov,A (2670)-Shimanov,A (2623) Sochi 2017}) 11... Re8 {[%emt 0:08:07]} 12. e3 $146 {[%emt 0:22:31]} ({Predecessor:} 12. Bd2 Ne4 13. e3 Bf5 14. Nh4 Ne5 15. Qc2 Rc8 16. Bc3 Bg4 17. Nd4 Qd7 18. Rac1 Ba5 19. Nhf3 Nxf3+ 20. Nxf3 Nxc3 21. bxc3 Bxc3 22. Qe2 {½-½ (22) Kveinys,A (2541)-Frois,A (2360) Cappelle-la-Grande 2003}) 12... Bg4 {[%emt 0:14:16]} 13. Nbd4 {[%emt 0:06:25]} Rc8 {[%emt 0:06:22]} 14. Bd2 {[%emt 0:01:41]} Ne4 {[%emt 0:05:45]} 15. Rac1 {[%emt 0:04:00]} Bxd4 {[%emt 0:17:17]} 16. exd4 {[%emt 0:06:11]} Nxd2 {[%emt 0:08:28]} 17. Qxd2 {[%emt 0:02:52]} Qf6 {[%emt 0:02:39]} 18. Ne5 $11 {[%emt 0:03:20]} Nxe5 {[%emt 0:02:03]} 19. dxe5 {[%emt 0:02:34]} Qxe5 {[%emt 0:01:29]} 20. Rxc8 {[%emt 0:04:15]} Bxc8 {[%emt 0:03:52]} 1/2-1/2

[Event "SWE-ch Juniors 2018"]
[Site "Ronneby"]
[Date "2018.07.05"]
[Round "6"]
[White "Carlsson, Ludvig"]
[Black "Forsberg, Andre"]
[Result "1-0"]
[ECO "E15"]
[WhiteElo "2169"]
[BlackElo "2025"]
[Annotator "NA"]
[PlyCount "63"]
[EventDate "2018.06.30"]
[EventType "tourn"]
[EventCountry "SWE"]
[SourceTitle "playchess.com"]
[Source "ChessBase"]
[SourceQuality "1"]
[TimeControl "40/5400+30:1800+30"]

1. d4 {[%emt 0:00:00]} Nf6 {[%emt 0:00:00]} 2. c4 {[%emt 0:00:00]} e6 {[%emt 0:00:00]} 3. Nf3 {[%emt 0:00:20]} b6 {[%emt 0:00:00]} 4. g3 {[%emt 0:00:26]} Ba6 {[%emt 0:00:00]} 5. Qc2 {[%emt 0:00:25] LiveBook: 1499 Partien} c5 {[%emt 0:02:18]} 6. d5 {[%emt 0:00:17] E15: Queen's Indian: 4 g3 sidelines, 4 g3 Ba6 and 4 g3 Bb7 early deviations} exd5 {[%emt 0:04:21]} 7. cxd5 {[%emt 0:01:12]} Bd6 {[%emt 0:00:15]} (7... g6 8. Nc3 Bg7 9. e4 Bxf1 10. Kxf1 d6 11. Kg2 O-O 12. Bf4 a6 13. a4 Nh5 {1-0 (47) Esipenko,A (2564)-Ivanchuk,V (2726) Riadh 2017}) 8. Bg2 {[%emt 0:20:23]} O-O {[%emt 0:04:50]} 9. O-O {[%emt 0:00:35]} Re8 {[%emt 0:10:20]} 10. Re1 {[%emt 0:04:03]} Bf8 $146 {[%emt 0:00:30]} ({Predecessor:} 10... Ne4 11. Nh4 Nf6 12. e4 Bb7 13. Nf3 Be5 14. Nxe5 Rxe5 {1-0 (31) Chemin,V (2133)-Bianeck,M (1664) Curitiba 2016}) 11. Nc3 {[%emt 0:07:23]} d6 {[%emt 0:02:20]} 12. a3 {[%emt 0:10:38]} Nbd7 {[%emt 0:12:51]} 13. b4 {[%emt 0:01:48]} g6 {[%emt 0:05:10]} 14. e4 {[%emt 0:08:22]} Bg7 {[%emt 0:04:33]} 15. b5 {[%emt 0:01:25]} Bb7 {[%emt 0:01:53]} 16. Bb2 $14 {[%emt 0:02:56]} Ng4 {[%emt 0:07:37]} 17. h3 {[%emt 0:06:35]} Nh6 {[%emt 0:11:39]} 18. g4 {[%emt 0:09:52]} Ne5 {[%emt 0:00:39]} 19. Nd2 {[%emt 0:02:46]} Qh4 {[%emt 0:23:38]} 20. Nd1 {[%emt 0:03:59]} f5 {[%emt 0:01:08]} 21. exf5 {[%emt 0:00:41]} gxf5 {[%emt 0:00:08]} 22. Bxe5 {[%emt 0:00:08]} Bxe5 {[%emt 0:02:31]} 23. Nf3 {[%emt 0:00:14]} Qf6 {[%emt 0:03:54]} 24. g5 {[%emt 0:00:35]} Bh2+ {[%emt 0:00:27]} 25. Kxh2 {[%emt 0:00:19]} Qxa1 {[%emt 0:00:12]} 26. Rxe8+ {[%emt 0:00:20]} Rxe8 {[%emt 0:00:12]} 27. gxh6 {[%emt 0:00:06]} Qf6 {[%emt 0:00:53]} 28. Ne3 {[%emt 0:01:11]} Qxh6 {[%emt 0:01:07]} 29. Qxf5 {[%emt 0:00:10]} Re7 {[%emt 0:00:32]} 30. Ng4 {[%emt 0:03:31]} Qg7 {[%emt 0:00:30]} 31. Ng5 {[%emt 0:00:42]} h5 {[%emt 0:00:28]} 32. Ne6 1-0

[Event "SWE-ch Juniors 2018"]
[Site "Ronneby"]
[Date "2018.07.05"]
[Round "6"]
[White "Sundin, Emanuel"]
[Black "Sorensen, Hampus"]
[Result "1/2-1/2"]
[ECO "D10"]
[WhiteElo "2152"]
[BlackElo "2204"]
[Annotator "NA"]
[PlyCount "48"]
[EventDate "2018.06.30"]
[EventType "tourn"]
[EventCountry "SWE"]
[SourceTitle "playchess.com"]
[Source "ChessBase"]
[SourceQuality "1"]
[TimeControl "40/5400+30:1800+30"]

{[%evp 8,41,18,9,27,20,23,24,32,31,33,34,28,35,30,35,33,32767,34,34,25,23,42,38,35,28,47,32767,37,15,12,18,10,32767,32,31]} 1. d4 {[%emt 0:01:44]} d5 {[%emt 0:00:00]} 2. c4 {[%emt 0:00:13]} c6 {[%emt 0:02:05]} 3. cxd5 {[%emt 0:00:53]} cxd5 {[%emt 0:00:12]} 4. Bg5 {[%emt 0:00:21] D10: Slav Defence: 3 cxd5 (without early Nf3) and 3 Nc3} (4. Bf4 Nf6 5. Nc3 Nc6 6. Nf3 a6 7. Rc1 Bf5 8. e3 Rc8 9. Be2 e6 10. O-O Nd7 11. Na4 Be7 12. h3 O-O 13. a3 Na5 14. Nc5 Nc4 15. b4 Nxc5 16. dxc5 Nxa3 {1-0 (44) So,W (2778)-Carlsen,M (2843) Stavanger 2018}) 4... h6 {[%emt 0:12:16] LiveBook: 44 Games} 5. Bh4 {[%emt 0:00:58]} Nf6 {[%emt 0:04:04]} 6. Bxf6 {[%emt 0:00:53]} gxf6 {[%emt 0:00:13]} 7. Nc3 {[%emt 0:00:28]} e6 {[%emt 0:01:19]} 8. e3 {[%emt 0:00:31]} Nc6 {[%emt 0:00:53]} 9. Bd3 {[%emt 0:00:48]} Bd6 $146 {[%emt 0:02:17]} ({Predecessor:} 9... Rg8 10. g3 Bd7 11. Nf3 Rc8 {½-½ (72) Girya,O (2484)-Nechaeva,M (2424) St Petersburg 2017}) 10. Nf3 {[%emt 0:02:33]} f5 {[%emt 0:01:20]} 11. O-O {[%emt 0:00:36]} Bd7 {[%emt 0:09:25]} 12. a3 {[%emt 0:05:42]} Rc8 {[%emt 0:02:53]} 13. Rc1 {[%emt 0:03:09]} a6 {[%emt 0:04:49]} 14. b4 {[%emt 0:04:05]} a5 {[%emt 0:13:02]} 15. b5 {[%emt 0:07:37]} Ne7 {[%emt 0:00:10]} 16. Qb3 {[%emt 0:03:21]} b6 {[%emt 0:00:18]} 17. Ne2 {[%emt 0:02:09]} Ng6 {[%emt 0:01:16]} 18. Kh1 {[%emt 0:08:31]} Rxc1 {[%emt 0:02:00]} 19. Rxc1 {[%emt 0:00:36]} Qe7 {[%emt 0:06:59]} 20. a4 {[%emt 0:02:31]} O-O {[%emt 0:01:08]} 21. g3 $14 {[%emt 0:02:38]} Rc8 {[%emt 0:02:35]} 22. Rxc8+ {[%emt 0:01:21]} Bxc8 {[%emt 0:00:12]} 23. Nf4 {[%emt 0:02:34]} Qc7 {[%emt 0:02:38]} 24. Be2 {[%emt 0:06:28]} Kf8 {[%emt 0:04:52]} 1/2-1/2

[Event "SWE-ch Juniors 2018"]
[Site "Ronneby"]
[Date "2018.07.05"]
[Round "6"]
[White "Berglind, Axel"]
[Black "Emmoth, Alfons"]
[Result "0-1"]
[ECO "A49"]
[WhiteElo "2096"]
[BlackElo "2176"]
[Annotator "NA"]
[PlyCount "128"]
[EventDate "2018.06.30"]
[EventType "tourn"]
[EventCountry "SWE"]
[SourceTitle "playchess.com"]
[Source "ChessBase"]
[SourceQuality "1"]
[TimeControl "40/5400+30:1800+30"]

1. d4 {[%emt 0:00:00]} Nf6 {[%emt 0:00:00]} 2. Nf3 {[%emt 0:00:31]} g6 {[%emt 0:00:00]} 3. g3 {[%emt 0:00:10]} Bg7 {[%emt 0:00:00]} 4. Bg2 {[%emt 0:00:07]} O-O {[%emt 0:00:07]} 5. O-O {[%emt 0:00:04] LiveBook: 7780 Games} d6 {[%emt 0:00:10]} 6. b3 {[%emt 0:00:26]} e5 {[%emt 0:01:27]} 7. dxe5 {[%emt 0:04:07]} Nfd7 {[%emt 0:01:16]} 8. Bb2 {[%emt 0:00:08]} dxe5 {[%emt 0:00:58] A49: Königsindisch (ohne c2-c4)} 9. Na3 $146 {[%emt 0:02:00]} (9. e4 $11) ({Vorgänger:} 9. Nfd2 Nc6 10. Nc4 Re8 11. Nc3 Qe7 12. Nd5 Qd8 13. Nc3 Nb6 14. Qxd8 Nxd8 15. Na5 c6 16. Ne4 {0-1 (30) Roiz,M (2600)-Onischuk,V (2612) Berlin 2015}) 9... e4 {[%emt 0:05:41]} 10. Bxg7 {[%emt 0:00:05]} exf3 {[%emt 0:00:24]} 11. Bxf8 {[%emt 0:00:05]} fxg2 {[%emt 0:00:09]} 12. Kxg2 {[%emt 0:00:01]} Qxf8 {[%emt 0:00:20]} 13. Nb5 {[%emt 0:03:30]} Qc5 {[%emt 0:03:49]} 14. c4 {[%emt 0:00:24]} a6 {[%emt 0:10:03]} 15. Nc3 {[%emt 0:03:49]} Nc6 {[%emt 0:08:32]} 16. Nd5 {[%emt 0:25:11]} Ne7 {[%emt 0:04:10]} 17. Ne3 {[%emt 0:01:36]} Nf6 {[%emt 0:06:28]} 18. Qc2 {[%emt 0:03:13] [#]} Bd7 {[%emt 0:09:26]} (18... Nf5 $1 $19 {[%cal Rf5e3]} 19. Nxf5 Bxf5) 19. Qb2 {[%emt 0:00:51]} Ne4 {[%emt 0:05:37]} 20. b4 {[%emt 0:01:26]} Qg5 $15 {[%emt 0:05:06]} 21. Qd4 {[%emt 0:04:10]} Bc6 {[%emt 0:03:01]} 22. f3 {[%emt 0:00:07]} Qf6 {[%emt 0:02:31]} 23. Qxf6 {[%emt 0:00:44]} Nxf6 {[%emt 0:00:08]} 24. a4 {[%emt 0:00:05]} Re8 {[%emt 0:05:36]} 25. b5 {[%emt 0:00:25]} Bd7 {[%emt 0:01:27]} 26. Nc2 {[%emt 0:00:52]} Be6 {[%emt 0:02:11]} 27. Nd4 {[%emt 0:09:34]} Nf5 {[%emt 0:03:20]} 28. Nxf5 {[%emt 0:00:13]} gxf5 {[%emt 0:00:16]} 29. Rfc1 {[%emt 0:03:36]} Rd8 {[%emt 0:04:44]} 30. Rd1 {[%emt 0:00:31]} Rxd1 {[%emt 0:02:39]} 31. Rxd1 {[%emt 0:00:04]} Bxc4 {[%emt 0:00:07]} 32. bxa6 {[%emt 0:13:08]} Bxa6 {[%emt 0:00:27]} 33. Kf2 {[%emt 0:00:04]} c6 {[%emt 0:02:15]} 34. h3 {[%emt 0:01:16]} h5 {[%emt 0:00:59]} 35. Rd4 {[%emt 0:01:07]} Kg7 {[%emt 0:01:08]} 36. Rf4 {[%emt 0:01:38]} Kg6 {[%emt 0:00:22]} 37. e4 {[%emt 0:00:21]} fxe4 {[%emt 0:01:55]} 38. fxe4 {[%emt 0:00:06]} Nd7 {[%emt 0:02:06]} 39. g4 {[%emt 0:00:13]} hxg4 {[%emt 0:03:41]} 40. Rxg4+ {[%emt 0:00:12]} Kh5 {[%emt 0:02:45]} 41. Ke3 {[%emt 0:35:11]} Ne5 {[%emt 0:32:36]} 42. Rg8 {[%emt 0:02:10]} c5 {[%emt 0:00:00]} 43. Rd8 {[%emt 0:00:00]} Kg6 {[%emt 0:00:00]} 44. Rd5 {[%emt 0:00:00]} Nc4+ {[%emt 0:00:00]} 45. Kf4 {[%emt 0:00:00]} Nb2 {[%emt 0:00:00]} 46. a5 {[%emt 0:00:00]} c4 {[%emt 0:00:00]} 47. Rg5+ {[%emt 0:00:00]} Kh6 {[%emt 0:00:00]} 48. Rg2 {[%emt 0:00:00]} c3 {[%emt 0:00:00]} 49. Rc2 {[%emt 0:00:00]} Na4 {[%emt 0:00:00]} 50. Ke3 {[%emt 0:00:00]} Bc4 {[%emt 0:00:00]} 51. Rf2 {[%emt 0:00:00]} Bb3 {[%emt 0:00:55]} 52. Rf6+ {[%emt 0:00:00]} Kg7 {[%emt 0:02:51]} 53. a6 {[%emt 0:00:00]} bxa6 {[%emt 0:01:40]} 54. Rxa6 {[%emt 0:00:00]} Nb2 {[%emt 0:02:08]} 55. Ra1 {[%emt 0:00:00]} Bd1 {[%emt 0:00:57]} 56. Ra6 {[%emt 0:00:57]} Nc4+ {[%emt 0:00:32]} 57. Kd3 {[%emt 0:00:33]} c2 {[%emt 0:00:33]} 58. Ra1 {[%emt 0:00:03]} Na5 {[%emt 0:00:42]} 59. Kc3 {[%emt 0:00:12]} Kf6 {[%emt 0:00:34]} 60. Kb2 {[%emt 0:00:10]} Nc4+ {[%emt 0:00:08]} 61. Kc1 {[%emt 0:00:05]} Ne5 {[%emt 0:00:39]} 62. Kd2 {[%emt 0:02:38]} Nf3+ {[%emt 0:00:05]} 63. Ke3 {[%emt 0:00:27]} Ng1 {[%emt 0:00:17]} 64. h4 {[%emt 0:01:09]} Ne2 {[%emt 0:00:17] Kd4 Ke5+} 0-1